Cogmind - Beta 10.2 @@@ ROGUE MODE // 2021.04.24 @ 15:23:08 Player: Officer C4 Result: Destroyed by D-53 Grenadier with Mini Grenade Launcher Performance ------------- Evolutions (0) 0 Regions Visited (2) 400 Robots Destroyed (14) 70 Value Destroyed (254) 254 Prototype IDs (4) 80 Alien Tech Used (0) 0 Bonus (0) 0 TOTAL SCORE: 804 Bonus ------- None Cogmind --------- Core Integrity 0/250 Matter 300/300 Energy 100/100 System Corruption 0% Temperature Cool (20) Movement Rolling (100) Location -10/Mines Parts ------- > --- POWER (1) -------- (None) > --- PROPULSION (2) --- Compact Wheel Compact Wheel > --- UTILITY (2) ------ Small Storage Unit Small Storage Unit > --- WEAPON (2) ------- (None) > --- INVENTORY (8) ---- Light Ion Engine Light Nuclear Core Aluminum Leg Aluminum Leg Compact Wheel Compact Wheel Datajack Peak State ------------ > --- POWER ------------ Light Nuclear Core > --- PROPULSION ------- Compact Wheel Compact Wheel > --- UTILITY ---------- Small Storage Unit Small Storage Unit > --- WEAPON ----------- Medium Laser Small Laser > --- INVENTORY -------- Light Ion Engine Light Nuclear Core Aluminum Leg Aluminum Leg Compact Wheel Compact Wheel Datajack [Rating: 9] Favorites ----------- Power Light Ion Engine Engine Light Ion Engine Power Core Light Nuclear Core Propulsion Compact Wheel Leg Aluminum Leg Wheel Compact Wheel Utility Small Storage Unit Storage Small Storage Unit Weapon Assault Rifle Energy Gun EM Pulse Gun Ballistic Gun Assault Rifle Build | -11 -10 -10 ------- Run | Scr Mat Min Slots Evolved . | . . . Power . | . . . Propulsion . | . . . Utility . | . . . Weapon . | . . . Parts Attached 15 | 7 8 . Power 2 | 1 1 . Engine 1 | 1 . . Core 1 | . 1 . Reactor . | . . . Propulsion 7 | 2 5 . Treads . | . . . Leg 2 | 2 . . Wheel 5 | . 5 . Hover . | . . . Flight . | . . . Utility 2 | 2 . . Device . | . . . Storage 2 | 2 . . Processor . | . . . Hackware . | . . . Protection . | . . . Artifact . | . . . Weapon 4 | 2 2 . Energy Gun 3 | 1 2 . Energy Cannon . | . . . Ballistic Gun 1 | 1 . . Ballistic Cannon . | . . . Launcher . | . . . Special Weapon . | . . . Impact Weapon . | . . . Slashing Weapon . | . . . Piercing Weapon . | . . . Special Melee Weapon . | . . . Unidentified Prototypes . | . . . Parts Lost 6 | . 3 3 Power 2 | . 1 1 Propulsion . | . . . Utility . | . . . Weapon 4 | . 2 2 Highest Loss Streak 3 | . 3 3 Average Slot Usage (%) 96 | . 96 97 Engine 10 | . 11 . Core 2 | . . 14 Leg 2 | . 3 . Wheel 25 | . 24 28 Storage 28 | . 28 28 Energy Gun 16 | . 14 25 Ballistic Gun 10 | . 11 . Naked Turns . | . . . Heaviest Build 16 | 15 16 16 Greatest Support 32 | 20 32 32 Greatest Overweight (x) 1 | 1 . . Average Overweight (x) . | . . . Largest Inventory Capacity 8 | 8 8 8 Average Capacity 7 | 6 8 8 Most Carried 8 | 8 8 7 Average Carried 6 | 4 7 7 Final Capacity 8 | 8 8 8 Final Carried 8 | 8 7 7 Class Distribution -------------------- 100% | Mutant Dominant Class ---------------- Mutant | -10/Materials Mutant | -10/Mines Resources | -11 -10 -10 ----------- Run | Scr Mat Min Matter Collected 455 | 282 173 . Remotely . | . . . Salvage Created 515 | 126 358 31 Parts 29 | 7 19 3 Haulers Intercepted . | . . . Recyclers Shooed 3 | 2 1 . Parts Field Recycled . | . . . Retrieved Matter . | . . . Parts Self-Destructed . | . . . Prevented . | . . . Kills | -11 -10 -10 ------- Run | Scr Mat Min Combat Hostiles Destroyed 7 | . 5 2 Guns 7 | . 5 2 Classes Destroyed 6 | 3 2 1 Worker 3 | 1 2 . Tunneler 1 | 1 . . Recycler 2 | 1 1 . Operator 1 | . 1 . Swarmer 2 | . . 2 Grunt 5 | . 5 . Best Kill Streak 5 | 1 5 2 Combat Bots Only 3 | . 3 2 Max Kills in Single Turn 1 | 1 1 1 Gunslinging . | . . . Exploded . | . . . Melee . | . . . Uniques/NPCs Destroyed . | . . . Combat | -11 -10 -10 -------- Run | Scr Mat Min Damage Taken 750 | . 455 295 Core 258 | . 109 149 Absorbed by Shields . | . . . Core Remaining (%) 100 | 100 . . Volleys Fired 50 | 8 38 4 Largest 2 | 2 2 2 Hottest 90 | 60 60 90 Shots Fired 84 | 16 61 7 Gun 84 | 16 61 7 Cannon . | . . . Launcher . | . . . Special . | . . . Kinetic 40 | 8 32 . Thermal 13 | . 6 7 Explosive . | . . . Electromagnetic 31 | 8 23 . Robot Hit Streak 9 | 8 9 3 Robot Miss Streak 8 | 1 8 1 Penetration Max . | . . . Secondary Targets . | . . . Shots Hit Robots 48 | 11 32 5 Core Hits 23 | 4 16 3 Critical Hits . | . . . Critical Kills . | . . . Critical Parts Destroyed . | . . . Melee Attacks . | . . . Impact . | . . . Slashing . | . . . Piercing . | . . . Sneak Attacks . | . . . Combat Hostiles . | . . . Follow-up Attacks . | . . . Damage Inflicted 706 | 153 509 44 Guns 615 | 153 418 44 Cannons . | . . . Explosions 91 | . 91 . Melee . | . . . Ramming . | . . . Kinetic 252 | 49 203 . Thermal 186 | . 142 44 Explosive . | . . . Electromagnetic 268 | 104 164 . Impact . | . . . Slashing . | . . . Piercing . | . . . Highest Corruption . | . . . Average Corruption . | . . . Corruption Purged . | . . . Overload Shots . | . . . Overflow Damage 4 | . 4 . Projectiles . | . . . Explosions 4 | . 4 . Melee . | . . . Knockbacks . | . . . Impact . | . . . Kinetic . | . . . Secondary . | . . . Self-Inflicted Damage 56 | . 56 . Shots 2 | . 2 . Rammed . | . . . Targets Rammed . | . . . Kicked . | . . . Crushed . | . . . Highest Temperature 108 | 20 60 108 Average Temperature 27 | 15 23 43 Received Heat Transfer 322 | . 222 100 Siege Activations . | . . . Robots Corrupted . | . . . Combat Hostiles . | . . . Parts Fried 1 | 1 . . Impact Corruptions . | . . . Robots Melted . | . . . Combat Hostiles . | . . . Parts Melted 1 | . 1 . Heat Transferred 372 | . 248 124 Parts Sabotaged . | . . . Parts Stolen . | . . . Parts Stripped . | . . . Power Chain Reactions 2 | . 2 . Missiles Intercepted . | . . . Alert | -11 -10 -10 ------- Run | Scr Mat Min Peak Influence 96 | 15 96 68 Initial 28 | . 9 28 Average 32 | 7 39 42 Maximum Alert Level . | . . . Low Security (%) 100 | 100 100 100 Level 1 . | . . . Level 2 . | . . . Level 3 . | . . . Level 4 . | . . . Level 5 . | . . . High Security . | . . . Max Security . | . . . Squads Dispatched 1 | . 1 . Investigation . | . . . Extermination . | . . . Reinforcement 1 | . 1 . Assault . | . . . Garrison . | . . . Intercept . | . . . Construction Impeded . | . . . Haulers Reinforced . | . . . Stealth | -11 -10 -10 --------- Run | Scr Mat Min Distress Signals 2 | . 2 . Communications Jammed . | . . . Distress Signals . | . . . Times Spotted 24 | . 11 13 Peak Tracking Total 10 | . 4 10 Tactical Retreats . | . . . Traps | -11 -10 -10 ------- Run | Scr Mat Min Traps Triggered . | . . . Indirectly . | . . . Trap Hack Attempts . | . . . Triggered . | . . . Disarmed . | . . . Reprogrammed . | . . . Reused . | . . . Traps Extracted . | . . . Installed . | . . . Triggered . | . . . Machines | -11 -10 -10 ---------- Run | Scr Mat Min Machines Disabled . | . . . Max in Single Turn . | . . . Machines Sabotaged . | . . . Garrisons Compromised . | . . . Overloaded Fab Kills . | . . . Fab Network Shutdowns . | . . . Hacking | -11 -10 -10 --------- Run | Scr Mat Min Machines Accessed 4 | . 4 . Terminals 4 | . 4 . Fabricators . | . . . Repair Stations . | . . . Recycling Units . | . . . Scanalyzers . | . . . Garrison Access . | . . . Total Hacks 9 | . 9 . Successful 4 | . 4 . Failed 5 | . 5 . Catastrophic 1 | . 1 . Database Lockouts . | . . . Manual . | . . . Terminals 9 | . 9 . Fabricators . | . . . Repair Stations . | . . . Recycling Units . | . . . Scanalyzers . | . . . Garrison Access . | . . . Terminal Hacks 4 | . 4 . Prototype ID Bank 2 | . 2 . Branch Access Points 1 | . 1 . Unreport Threat 1 | . 1 . Fabricator Hacks . | . . . Repair Station Hacks . | . . . Recycling Unit Hacks . | . . . Scanalyzer . | . . . Garrison Access Hacks . | . . . Unauthorized Hacks . | . . . Terminals . | . . . Fabricators . | . . . Repair Stations . | . . . Recycling Units . | . . . Scanalyzers . | . . . Garrison Access . | . . . Data Cores Recovered . | . . . Used . | . . . Hacking Detections 3 | . 3 . Full Trace Events 1 | . 1 . Feedback Events . | . . . Feedback Blocked . | . . . Robot Schematics Acquired . | . . . Robots Built . | . . . Matter . | . . . Time . | . . . Total Robot Build Rating . | . . . Part Schematics Acquired . | . . . Parts Built . | . . . Matter . | . . . Time . | . . . Total Part Build Rating . | . . . Parts Repaired . | . . . Time . | . . . Parts Recycled . | . . . Recycled Matter . | . . . Retrieved Matter . | . . . Retrieved Components . | . . . Parts Scanalyzed . | . . . Part Schematics Acquired . | . . . Parts Damaged . | . . . Bothacking | -11 -10 -10 ------------ Run | Scr Mat Min Used RIF Installer . | . . . Robots Hacked . | . . . Non-combat . | . . . Combat . | . . . Robot Hacks Applied . | . . . Relay Couplers Released . | . . . Robots Rewired . | . . . Allies Hacked . | . . . Hacks Repelled . | . . . Allies | -11 -10 -10 -------- Run | Scr Mat Min Total Allies . | . . . Largest Group . | . . . Highest-Rated Group . | . . . Highest-Rated Ally . | . . . Total Orders . | . . . Ally Attacks . | . . . Total Damage . | . . . Kills . | . . . Allies Corrupted . | . . . Allies Melted . | . . . Intel | -11 -10 -10 ------- Run | Scr Mat Min Robot Analysis Total . | . . . Derelict Logs Recovered 1 | . . 1 Drone Launches . | . . . Drone Recoveries . | . . . Exploration | -11 -10 -10 ------------- Run | Scr Mat Min Turns Passed 556 | 134 367 55 Spaces Moved 319 | 66 213 40 Core 8 | 8 . . Treads . | . . . Legs 89 | 58 31 . Wheels 222 | . 182 40 Hover . | . . . Flight . | . . . Fastest Speed 50 | 50 100 100 Average Speed 109 | 135 102 100 Slowest Speed 150 | 150 120 100 Overloaded Moves . | . . . Propulsion Burnouts . | . . . Robots Hopped . | . . . Cave-ins Triggered . | . . . Exploration Rate (%) 18 | 5 38 11 Regions Visited 2 Branch Regions 1 Pre-discovered Areas . | . . . Known Exits Taken 1 | . 1 . Unknown Exits Taken 1 | 1 . . Scrap Searched . | . . . Spaces Dug . | . . . Terrain Destroyed 7 | . 7 . Melee . | . . . Projectile . | . . . AOE 7 | . 7 . Terrain Rammed . | . . . Walls Destroyed . | . . . Machines Disabled . | . . . Actions | -11 -10 -10 --------- Run | Scr Mat Min Total 444 | 95 301 48 Wait 29 | . 25 4 Move 317 | 65 212 40 Hop . | . . . Pick Up 24 | 15 9 . Fast Attach 2 | . 2 . Attach 10 | 7 3 . Detach . | . . . Swap 3 | . 3 . Drop 9 | . 9 . Fire 50 | 8 38 4 Melee . | . . . Ram . | . . . Kick . | . . . Crush . | . . . Escape Stasis . | . . . Rewire . | . . . Trap . | . . . Miscellaneous . | . . . Route ------- -11/Scrapyard -10/Materials (discovered 2 exits: [*Mat] / *Min) -10/Mines History --------- Turn | Location | Event 10 | -11/Scrapyard | Discovered new exit (range 15) 135 | -11/Scrapyard | Entered Materials 283 | -10/Materials | Discovered new exit (range 16) 307 | -10/Materials | Build established: Mutant 312 | -10/Materials | Identified exit to Mines 473 | -10/Materials | Lost 3 parts (1p2w) 502 | -10/Materials | Entered Mines 520 | -10/Mines | Learned Materials interactive machine intel 529 | -10/Mines | Assembled infested the area 550 | -10/Mines | Core integrity fell below 50% 557 | -10/Mines | Destroyed by D-53 Grenadier with Mini Grenade Launcher Last Messages --------------- K-01 Serf collects debris. Connecting with Terminal... >>Prototypes Downloading prototype IDs... Imp. Medium Laser Imp. Flight Unit K-01 Serf collects debris. LOCATION=MINES GOAL=ESCAPE Something is scanning the area. K-01 Serf collects debris. Acquired derelict log, extracted data. Data stored: Materials interactive machine intel. ALERT: Infestation in the mines, dispatching Demolisher response squad. S-10 Pest destroyed. Med. Laser destroyed. Lgt. Nuclear Core destroyed. Sml. Laser destroyed. C-30 ARC bursts open, deploying its payload. D-53 Grenadier unfolds itself. Map ----- +----------------------------------------------------+ | ?????????????????????????????????????????????????? | | ?????????????????????????????????????????????????? | | ?????????????????????????????????????????????????? | | ?????????????????????????????????????????????????? | | ?????????????????????????????????????????????????? | | ?????????????????????????????????????????????????? | | ?????????????????????????????????????????????????? | | ?????????????????????????????????????????????????? | | ?????????????????????????????????????????????????? | | ?????????????????????????????????????????????????? | | ?????????????????????????????????????????????????? | | ?????????????????????????????????????????????????? | | ?????????????????????????????????????????????????? | | ?????????????????????????????????????????????????? | | ????????????????????????????????????????????????#? | | ?????????????????????????????????????????????? #? | | ?????????????????????????????????????????????? ?? | | ????????????????????????????????????????????? ?? | | ????????????????????????????????????????????? ??? | | ???????????????????????????????????????????? #??? | | ???????????????????????###?????????????????? #??? | | ?????????????????????### ###???????????????? #??? | | ???????????????####### #????????????#### ###? | | ???????????# "% d ############## #? | | ????????????????###### ## """ #? | | ?????????????????????####@ ## ######### # """ #? | | ???????????????????????##aa## #???????# # """ #? | | ???????????????????????#**a #???????# # #? | | ???????????????????????#a######???????# # #? | | ???????????????????????#a#????????????# # #? | | ??????????????????????? a ????????????# # #? | | ?????????????????????? ????????????# # #? | | ?????????????????????# a""???????????# # #? | | ?????????????????????# a""???????????? # #? | | ?????????????????????# """??????????? #########? | | ?????????????????????# =??????????? ?????????? | | ?????????????????????######%??????????? ?????????? | | ??????????????????????????????????????? ?????????? | | ??????????????????????????????????????? ?????????? | | ??????????????????????????????????????? ?????????? | | ?????????????????????????????????????????????????? | | ?????????????????????????????????????????????????? | | ?????????????????????????????????????????????????? | | ?????????????????????????????????????????????????? | | ?????????????????????????????????????????????????? | | ?????????????????????????????????????????????????? | | ?????????????????????????????????????????????????? | | ?????????????????????????????????????????????????? | | ?????????????????????????????????????????????????? | | ?????????????????????????????????????????????????? | +----------------------------------------------------+ Best States ------------- Heat Dissipation 25 Energy Generation 14 Energy Capacity 160 Matter Stores 300 Matter Capacity 300 Sight Range 16 Terrain Scan Density 10 Evasion (%) 40 Item Schematics ----------------- None Robot Schematics ------------------ None Fabricated ------------ Nothing Alien Tech Used ----------------- None Achievements -------------- None Challenges ------------ None Game ------ Seed CorruptionIonicDetonator Manual? 0 Play Time 00:08:16 Cumulative 21.2 hours Start 2021.04.24 @ 15:13:14 End 2021.04.24 @ 15:23:08 Sessions 1 Manual Loads 0 Difficulty Rogue Special Mode None Game No. 25 Rogue 25 Adventurer 0 Explorer 0 Win Type - Total 0 Types 0/0/0/0/0/0/0/0/0 Lore% 20 Gallery% 26 Achievement% 20 Wizard Run 0 Options --------- ASCII 0 Keyboard 0 Movement Mouse Keybinds 0 Fullscreen 1 Font 18/SmallcapsGlow Map View 76x50 Tactical HUD 0 Map Filters NONE Filters NONE Steam 1 RUN: ab49cea1-f0d7-4954-8a6d-272672ed5ee8